[Event "Late-Titled-Tuesday-Blitz-August-29-2023"]
[Site "Chess.com"]
[Date "2023.08.29"]
[Round "3"]
[White "cthake"]
[Black "subham777"]
[Result "0-1"]
[WhiteElo "1862"]
[BlackElo "2519"]
[TimeControl "180+1"]
[EndTime "14:28:04 PDT"]
[Termination "subham777 won by resignation"]

1. e4 {[%clk 0:03:00.9]} 1... e6 {[%clk 0:02:57.8]} 2. d3 {[%clk 0:02:59.2]}
2... c5 {[%clk 0:02:56.1]} 3. g3 {[%clk 0:02:58.6]} 3... Nc6 {[%clk 0:02:56.1]}
4. Bg2 {[%clk 0:02:58.7]} 4... g6 {[%clk 0:02:56.5]} 5. Ne2 {[%clk 0:02:56.2]}
5... Bg7 {[%clk 0:02:55.6]} 6. O-O {[%clk 0:02:55.9]} 6... d6 {[%clk 0:02:54.5]}
7. Nbc3 {[%clk 0:02:55.6]} 7... Nge7 {[%clk 0:02:53.9]} 8. f4 {[%clk 0:02:55.4]}
8... O-O {[%clk 0:02:51.9]} 9. h3 {[%clk 0:02:52.5]} 9... f5 {[%clk 0:02:45.1]}
10. Qe1 {[%clk 0:02:46.4]} 10... e5 {[%clk 0:02:42.1]} 11. Be3 {[%clk
0:02:35.8]} 11... Nd4 {[%clk 0:02:41]} 12. Qd2 {[%clk 0:02:30.3]} 12... a6
{[%clk 0:02:31.4]} 13. a4 {[%clk 0:02:29.6]} 13... Be6 {[%clk 0:02:30]} 14. Nd5
{[%clk 0:02:23.1]} 14... fxe4 {[%clk 0:02:26.5]} 15. Nxe7+ {[%clk 0:02:19]}
15... Qxe7 {[%clk 0:02:22]} 16. dxe4 {[%clk 0:02:19.7]} 16... Rae8 {[%clk
0:02:14.8]} 17. Ra3 {[%clk 0:02:16.6]} 17... Nxe2+ {[%clk 0:02:05.5]} 18. Qxe2
{[%clk 0:02:14.6]} 18... exf4 {[%clk 0:01:59.7]} 19. gxf4 {[%clk 0:02:09.2]}
19... Qf7 {[%clk 0:01:56.5]} 20. Kh1 {[%clk 0:02:00.1]} 20... Bc4 {[%clk
0:01:54.7]} 21. Qf2 {[%clk 0:01:53.2]} 21... Bxf1 {[%clk 0:01:53.1]} 22. Qxf1
{[%clk 0:01:53.5]} 22... Be5 {[%clk 0:01:38.5]} 23. fxe5 {[%clk 0:01:32.1]}
23... Qxf1+ {[%clk 0:01:37.7]} 24. Bxf1 {[%clk 0:01:32.9]} 24... Rxf1+ {[%clk
0:01:02.9]} 25. Kg2 {[%clk 0:01:32.2]} 25... Rf7 {[%clk 0:00:49.3]} 26. exd6
{[%clk 0:01:31.8]} 26... Rxe4 {[%clk 0:00:47.5]} 27. Bxc5 {[%clk 0:01:31.7]}
27... Rc4 {[%clk 0:00:45.7]} 28. b4 {[%clk 0:00:38.6]} 28... Rxc2+ {[%clk
0:00:39.5]} 29. Kg3 {[%clk 0:00:38.8]} 29... Rd2 {[%clk 0:00:37.6]} 30. Re3
{[%clk 0:00:36.2]} 30... b6 {[%clk 0:00:29.8]} 31. Re8+ {[%clk 0:00:35.6]} 31...
Kg7 {[%clk 0:00:19]} 32. Bxb6 {[%clk 0:00:25.2]} 32... Rxd6 {[%clk 0:00:18.4]}
33. Bc5 {[%clk 0:00:23.5]} 33... Rd3+ {[%clk 0:00:17.3]} 34. Kg2 {[%clk
0:00:23.6]} 34... Rff3 {[%clk 0:00:16.2]} 35. Re7+ {[%clk 0:00:22]} 35... Kh6
{[%clk 0:00:14.7]} 36. Re4 {[%clk 0:00:19.6]} 36... Rxh3 {[%clk 0:00:12.4]} 37.
Bf8+ {[%clk 0:00:17.9]} 37... Kg5 {[%clk 0:00:12.6]} 38. Be7+ {[%clk 0:00:16.9]}
38... Kf5 {[%clk 0:00:12.5]} 39. Rc4 {[%clk 0:00:15.5]} 39... Rhg3+ {[%clk
0:00:11.7]} 40. Kf2 {[%clk 0:00:15.1]} 40... Rdf3+ {[%clk 0:00:11.9]} 41. Ke2
{[%clk 0:00:15]} 41... Re3+ {[%clk 0:00:12]} 42. Kd2 {[%clk 0:00:15.1]} 42...
Rxe7 {[%clk 0:00:11.8]} 0-1

[Event "Late-Titled-Tuesday-Blitz-August-29-2023"]
[Site "Chess.com"]
[Date "2023.08.29"]
[Round "3"]
[White "merinasian"]
[Black "DenizSeyhanoglu1"]
[Result "0-1"]
[WhiteElo "2451"]
[BlackElo "2319"]
[TimeControl "180+1"]
[EndTime "14:28:04 PDT"]
[Termination "DenizSeyhanoglu1 won by resignation"]

1. d4 {[%clk 0:03:00.9]} 1... d5 {[%clk 0:02:59]} 2. Nf3 {[%clk 0:03:01.7]} 2...
Nf6 {[%clk 0:02:58.3]} 3. Bf4 {[%clk 0:03:01.3]} 3... c6 {[%clk 0:02:57.2]} 4.
e3 {[%clk 0:03:01.7]} 4... Bf5 {[%clk 0:02:56.8]} 5. c4 {[%clk 0:03:00.8]} 5...
e6 {[%clk 0:02:56.6]} 6. Nc3 {[%clk 0:03:00.3]} 6... Nbd7 {[%clk 0:02:52.1]} 7.
h3 {[%clk 0:02:59.9]} 7... h6 {[%clk 0:02:51.4]} 8. Bd3 {[%clk 0:02:57.7]} 8...
Bxd3 {[%clk 0:02:47.9]} 9. Qxd3 {[%clk 0:02:58.6]} 9... Be7 {[%clk 0:02:47]} 10.
O-O {[%clk 0:02:58.5]} 10... O-O {[%clk 0:02:46.6]} 11. Rad1 {[%clk 0:02:55.6]}
11... Qa5 {[%clk 0:02:44.6]} 12. a3 {[%clk 0:02:52]} 12... dxc4 {[%clk
0:02:42.2]} 13. Qxc4 {[%clk 0:02:51.2]} 13... Nb6 {[%clk 0:02:40.1]} 14. Qe2
{[%clk 0:02:41.6]} 14... Nbd5 {[%clk 0:02:39.9]} 15. Nxd5 {[%clk 0:02:41.4]}
15... exd5 {[%clk 0:02:37.1]} 16. Ne5 {[%clk 0:02:37.1]} 16... Rfe8 {[%clk
0:02:33.6]} 17. Qf3 {[%clk 0:02:27.9]} 17... Ne4 {[%clk 0:02:28.3]} 18. Bxh6
{[%clk 0:02:19]} 18... f6 {[%clk 0:02:17.1]} 19. Qg4 {[%clk 0:02:18]} 19... Bf8
{[%clk 0:02:11.1]} 20. Nd7 {[%clk 0:02:04.8]} 20... Qc7 {[%clk 0:02:01]} 21.
Nxf8 {[%clk 0:02:01.8]} 21... Kxf8 {[%clk 0:02:00.1]} 22. Bf4 {[%clk 0:01:56.8]}
22... Qf7 {[%clk 0:01:56.8]} 23. f3 {[%clk 0:01:49.8]} 23... f5 {[%clk
0:01:56.7]} 24. Qh4 {[%clk 0:01:45.8]} 24... Nf6 {[%clk 0:01:53.5]} 25. Be5
{[%clk 0:01:40.3]} 25... Re6 {[%clk 0:01:50.3]} 26. g4 {[%clk 0:01:35.5]} 26...
fxg4 {[%clk 0:01:47.2]} 27. fxg4 {[%clk 0:01:34.2]} 27... Kg8 {[%clk 0:01:47.4]}
28. g5 {[%clk 0:01:33.5]} 28... Qg6 {[%clk 0:01:47.4]} 29. Kh2 {[%clk
0:01:12.6]} 29... Ne4 {[%clk 0:01:44.2]} 30. Qg4 {[%clk 0:01:03.5]} 30... Rae8
{[%clk 0:00:46.3]} 31. h4 {[%clk 0:00:50.2]} 31... Nf6 {[%clk 0:00:42.7]} 32.
Qf3 {[%clk 0:00:25.9]} 32... Ne4 {[%clk 0:00:33]} 33. h5 {[%clk 0:00:24.1]}
33... Qxg5 {[%clk 0:00:28.3]} 34. Rg1 {[%clk 0:00:24.2]} 34... Qh4+ {[%clk
0:00:24.2]} 35. Qh3 {[%clk 0:00:24.2]} 35... Qxh3+ {[%clk 0:00:20.8]} 36. Kxh3
{[%clk 0:00:24.3]} 36... Nf2+ {[%clk 0:00:21.7]} 37. Kh2 {[%clk 0:00:24.1]}
37... Nxd1 {[%clk 0:00:22.6]} 38. Rxd1 {[%clk 0:00:19.4]} 38... Rxe5 {[%clk
0:00:22.6]} 39. dxe5 {[%clk 0:00:19]} 39... Rxe5 {[%clk 0:00:23.5]} 40. Rd3
{[%clk 0:00:19]} 40... Rxh5+ {[%clk 0:00:23.5]} 41. Kg3 {[%clk 0:00:19.9]} 41...
Kf7 {[%clk 0:00:20.8]} 42. Rb3 {[%clk 0:00:20]} 42... b6 {[%clk 0:00:19.6]} 43.
Rc3 {[%clk 0:00:20.3]} 43... c5 {[%clk 0:00:19.6]} 44. Rc1 {[%clk 0:00:20.8]}
44... Ke6 {[%clk 0:00:18.3]} 45. Rf1 {[%clk 0:00:20.5]} 45... Rf5 {[%clk
0:00:18.3]} 46. Rh1 {[%clk 0:00:20.1]} 46... Ke5 {[%clk 0:00:17.6]} 47. Rh7
{[%clk 0:00:20]} 47... Rf7 {[%clk 0:00:18.1]} 48. Rh5+ {[%clk 0:00:20.2]} 48...
Ke4 {[%clk 0:00:18.4]} 49. Rh4+ {[%clk 0:00:19.9]} 49... Kxe3 {[%clk 0:00:18.5]}
50. Ra4 {[%clk 0:00:19.5]} 50... d4 {[%clk 0:00:18.4]} 0-1

[Event "Late-Titled-Tuesday-Blitz-August-29-2023"]
[Site "Chess.com"]
[Date "2023.08.29"]
[Round "3"]
[White "Fonsofan"]
[Black "YQPerez"]
[Result "0-1"]
[WhiteElo "2677"]
[BlackElo "2897"]
[TimeControl "180+1"]
[EndTime "14:28:05 PDT"]
[Termination "YQPerez won by checkmate"]

1. Nf3 {[%clk 0:03:00.3]} 1... d5 {[%clk 0:02:58.8]} 2. g3 {[%clk 0:03:00.3]}
2... Nf6 {[%clk 0:02:58.4]} 3. Bg2 {[%clk 0:03:00.2]} 3... Bf5 {[%clk
0:02:59.1]} 4. d3 {[%clk 0:03:00.1]} 4... e6 {[%clk 0:02:59.2]} 5. O-O {[%clk
0:03:00.2]} 5... Be7 {[%clk 0:02:57.3]} 6. Nbd2 {[%clk 0:03:00.3]} 6... h6
{[%clk 0:02:57.4]} 7. Qe1 {[%clk 0:03:00.4]} 7... Bh7 {[%clk 0:02:56.3]} 8. e4
{[%clk 0:03:00.8]} 8... O-O {[%clk 0:02:56.8]} 9. Qe2 {[%clk 0:02:59.1]} 9...
Nc6 {[%clk 0:02:57.1]} 10. c3 {[%clk 0:02:57]} 10... a5 {[%clk 0:02:55.2]} 11.
a4 {[%clk 0:02:55.5]} 11... Nd7 {[%clk 0:02:50.6]} 12. Nb3 {[%clk 0:02:49.8]}
12... Nc5 {[%clk 0:02:34.4]} 13. Nxc5 {[%clk 0:02:48.7]} 13... Bxc5 {[%clk
0:02:35.3]} 14. Be3 {[%clk 0:02:37.7]} 14... d4 {[%clk 0:02:27.1]} 15. cxd4
{[%clk 0:02:21.1]} 15... Nxd4 {[%clk 0:02:28]} 16. Nxd4 {[%clk 0:02:21.3]} 16...
Bxd4 {[%clk 0:02:28.9]} 17. Rfc1 {[%clk 0:02:21.1]} 17... c6 {[%clk 0:02:28.7]}
18. Bxd4 {[%clk 0:02:19]} 18... Qxd4 {[%clk 0:02:27.4]} 19. Rc4 {[%clk
0:02:19.4]} 19... Qb6 {[%clk 0:02:26]} 20. d4 {[%clk 0:02:17.3]} 20... Rad8
{[%clk 0:02:25.1]} 21. Rd1 {[%clk 0:02:17.4]} 21... Rd7 {[%clk 0:02:23.4]} 22.
d5 {[%clk 0:01:52.3]} 22... Rfd8 {[%clk 0:02:07.7]} 23. Rcd4 {[%clk 0:01:51]}
23... e5 {[%clk 0:01:30.1]} 24. R4d2 {[%clk 0:01:49.3]} 24... Bg6 {[%clk
0:01:25.9]} 25. Bf3 {[%clk 0:01:45]} 25... Rd6 {[%clk 0:01:18.6]} 26. h4 {[%clk
0:01:42.7]} 26... f6 {[%clk 0:01:16.7]} 27. Bh5 {[%clk 0:01:13.9]} 27... Bxh5
{[%clk 0:01:11.3]} 28. Qxh5 {[%clk 0:01:14.8]} 28... Qc5 {[%clk 0:01:01.2]} 29.
Qg4 {[%clk 0:01:06.8]} 29... Kh8 {[%clk 0:00:58.6]} 30. h5 {[%clk 0:00:53.1]}
30... Qb4 {[%clk 0:00:49.2]} 31. Qe2 {[%clk 0:00:36.2]} 31... Qxa4 {[%clk
0:00:46.6]} 32. dxc6 {[%clk 0:00:34.2]} 32... Qxc6 {[%clk 0:00:46.5]} 33. Rxd6
{[%clk 0:00:33.7]} 33... Rxd6 {[%clk 0:00:46.3]} 34. Rxd6 {[%clk 0:00:34.3]}
34... Qxd6 {[%clk 0:00:47.2]} 35. Qb5 {[%clk 0:00:30.6]} 35... Qc6 {[%clk
0:00:44.5]} 36. Qd3 {[%clk 0:00:18.7]} 36... Kh7 {[%clk 0:00:42.2]} 37. Qf3
{[%clk 0:00:06.1]} 37... Qd7 {[%clk 0:00:40.6]} 38. g4 {[%clk 0:00:04.7]} 38...
a4 {[%clk 0:00:40.4]} 39. Kg2 {[%clk 0:00:05.2]} 39... b5 {[%clk 0:00:40.7]} 40.
Kg3 {[%clk 0:00:05.2]} 40... b4 {[%clk 0:00:40.5]} 41. Kh4 {[%clk 0:00:05.3]}
41... Kh8 {[%clk 0:00:39.1]} 42. Qe3 {[%clk 0:00:05.1]} 42... Qd4 {[%clk
0:00:38.6]} 43. Qe2 {[%clk 0:00:04.6]} 43... Qa7 {[%clk 0:00:36.7]} 44. Qb5
{[%clk 0:00:04.8]} 44... Qxf2+ {[%clk 0:00:33.3]} 45. Kh3 {[%clk 0:00:05.5]}
45... Qf3+ {[%clk 0:00:32.6]} 46. Kh4 {[%clk 0:00:06]} 46... Qxe4 {[%clk
0:00:32]} 47. Qxa4 {[%clk 0:00:04.3]} 47... Kh7 {[%clk 0:00:30.7]} 48. Qe8
{[%clk 0:00:03.1]} 48... Qc2 {[%clk 0:00:25.7]} 49. b3 {[%clk 0:00:02.6]} 49...
Qh2# {[%clk 0:00:25.6]} 0-1

[Event "Late-Titled-Tuesday-Blitz-August-29-2023"]
[Site "Chess.com"]
[Date "2023.08.29"]
[Round "3"]
[White "jaskol95"]
[Black "krucki03"]
[Result "1-0"]
[WhiteElo "2577"]
[BlackElo "2403"]
[TimeControl "180+1"]
[EndTime "14:28:05 PDT"]
[Termination "jaskol95 won on time"]

1. e4 {[%clk 0:03:00.9]} 1... e6 {[%clk 0:02:59.6]} 2. Nf3 {[%clk 0:02:58.7]}
2... d5 {[%clk 0:02:59.4]} 3. e5 {[%clk 0:02:59.4]} 3... c5 {[%clk 0:02:56]} 4.
b4 {[%clk 0:02:59.7]} 4... a5 {[%clk 0:02:44]} 5. bxc5 {[%clk 0:02:54.6]} 5...
Bxc5 {[%clk 0:02:44.9]} 6. d4 {[%clk 0:02:55.2]} 6... Be7 {[%clk 0:02:41.2]} 7.
Bd3 {[%clk 0:02:48.8]} 7... b6 {[%clk 0:02:37]} 8. O-O {[%clk 0:02:43.8]} 8...
Ba6 {[%clk 0:02:36.8]} 9. a4 {[%clk 0:02:40.5]} 9... h5 {[%clk 0:02:34.9]} 10.
Ba3 {[%clk 0:02:39.5]} 10... Nh6 {[%clk 0:02:33.6]} 11. Bxe7 {[%clk 0:02:39]}
11... Qxe7 {[%clk 0:02:34.3]} 12. Nc3 {[%clk 0:02:37.3]} 12... Nc6 {[%clk
0:02:27.8]} 13. Bxa6 {[%clk 0:02:36.9]} 13... Rxa6 {[%clk 0:02:25.9]} 14. Nb5
{[%clk 0:02:37.5]} 14... O-O {[%clk 0:02:24.7]} 15. c3 {[%clk 0:02:35.3]} 15...
Nf5 {[%clk 0:02:21.9]} 16. Rb1 {[%clk 0:02:33.4]} 16... g6 {[%clk 0:02:19.7]}
17. Qd3 {[%clk 0:02:27.1]} 17... Rc8 {[%clk 0:02:14.6]} 18. Nd6 {[%clk
0:02:17.5]} 18... Rca8 {[%clk 0:02:13.1]} 19. Nb5 {[%clk 0:02:12.1]} 19... Kg7
{[%clk 0:02:03.9]} 20. Rb2 {[%clk 0:02:12.3]} 20... h4 {[%clk 0:02:03.2]} 21. h3
{[%clk 0:02:10.9]} 21... g5 {[%clk 0:02:02.5]} 22. Rfb1 {[%clk 0:02:08.3]} 22...
Kh6 {[%clk 0:01:52.3]} 23. Nh2 {[%clk 0:02:08.2]} 23... Kg7 {[%clk 0:01:38]} 24.
Ng4 {[%clk 0:02:07.9]} 24... Rc8 {[%clk 0:01:22.4]} 25. Nd6 {[%clk 0:01:56.6]}
25... Nxd6 {[%clk 0:01:14.9]} 26. Qxa6 {[%clk 0:01:36.4]} 26... Nc4 {[%clk
0:01:13.6]} 27. Qxc8 {[%clk 0:01:34.9]} 27... Nxb2 {[%clk 0:01:08.2]} 28. Nf6
{[%clk 0:01:32.8]} 28... Nd8 {[%clk 0:00:58.7]} 29. Rxb2 {[%clk 0:01:29.1]}
29... Kg6 {[%clk 0:00:59.3]} 30. Qd7 {[%clk 0:01:22.5]} 30... Qa3 {[%clk
0:00:55.7]} 31. Rb1 {[%clk 0:01:11.6]} 31... Qxc3 {[%clk 0:00:31.1]} 32. Qxd8
{[%clk 0:01:07.3]} 32... Qxd4 {[%clk 0:00:31.1]} 33. Qg8+ {[%clk 0:01:06.5]}
33... Kf5 {[%clk 0:00:30.9]} 34. Qh7+ {[%clk 0:01:05.9]} 34... Kf4 {[%clk
0:00:31]} 35. Qh5 {[%clk 0:01:03.2]} 35... Kxe5 {[%clk 0:00:27.2]} 36. Qxg5+
{[%clk 0:00:59.1]} 36... Kd6 {[%clk 0:00:26.2]} 37. Qe3 {[%clk 0:00:52.5]} 37...
Qxf6 {[%clk 0:00:22.7]} 38. Qxb6+ {[%clk 0:00:53]} 38... Ke5 {[%clk 0:00:18.4]}
39. Qb2+ {[%clk 0:00:52.8]} 39... d4 {[%clk 0:00:18]} 40. Re1+ {[%clk
0:00:50.2]} 40... Kf5 {[%clk 0:00:18.2]} 41. Qb5+ {[%clk 0:00:48.9]} 41... e5
{[%clk 0:00:17.6]} 42. Qxa5 {[%clk 0:00:48]} 42... Qd6 {[%clk 0:00:16.7]} 43.
Qd2 {[%clk 0:00:47]} 43... e4 {[%clk 0:00:15.2]} 44. a5 {[%clk 0:00:45]} 44...
d3 {[%clk 0:00:13.9]} 45. Qe3 {[%clk 0:00:42.8]} 45... Qd5 {[%clk 0:00:08.5]}
46. a6 {[%clk 0:00:41]} 46... Qa8 {[%clk 0:00:07.2]} 47. a7 {[%clk 0:00:39.5]}
47... Qd5 {[%clk 0:00:07]} 48. Qxe4+ {[%clk 0:00:36.3]} 48... Qxe4 {[%clk
0:00:07.1]} 49. Rxe4 {[%clk 0:00:37.2]} 49... d2 {[%clk 0:00:06.9]} 50. Rd4
{[%clk 0:00:37.1]} 50... d1=Q+ {[%clk 0:00:06.4]} 51. Rxd1 {[%clk 0:00:37.4]}
1-0

[Event "Late-Titled-Tuesday-Blitz-August-29-2023"]
[Site "Chess.com"]
[Date "2023.08.29"]
[Round "3"]
[White "S-Fazulyanov"]
[Black "Beca95"]
[Result "0-1"]
[WhiteElo "2698"]
[BlackElo "2952"]
[TimeControl "180+1"]
[EndTime "14:28:08 PDT"]
[Termination "Beca95 won on time"]

1. e4 {[%clk 0:03:00]} 1... c5 {[%clk 0:02:58.5]} 2. Nf3 {[%clk 0:02:59.5]} 2...
d6 {[%clk 0:02:58.9]} 3. d4 {[%clk 0:02:55.4]} 3... cxd4 {[%clk 0:02:59.8]} 4.
Nxd4 {[%clk 0:02:55.1]} 4... Nf6 {[%clk 0:02:59.7]} 5. Nc3 {[%clk 0:02:55.3]}
5... a6 {[%clk 0:02:57.5]} 6. g3 {[%clk 0:02:52.3]} 6... e5 {[%clk 0:02:56.5]}
7. Nde2 {[%clk 0:02:46.3]} 7... Be7 {[%clk 0:02:56]} 8. Bg2 {[%clk 0:02:46]}
8... Nbd7 {[%clk 0:02:53.3]} 9. O-O {[%clk 0:02:45.8]} 9... b5 {[%clk
0:02:53.3]} 10. h3 {[%clk 0:02:43.2]} 10... Bb7 {[%clk 0:02:52.1]} 11. a4 {[%clk
0:02:41.4]} 11... b4 {[%clk 0:02:51]} 12. Nd5 {[%clk 0:02:41.7]} 12... Nxd5
{[%clk 0:02:49.8]} 13. exd5 {[%clk 0:02:42.6]} 13... a5 {[%clk 0:02:49.8]} 14.
g4 {[%clk 0:02:37.5]} 14... Ba6 {[%clk 0:02:48.9]} 15. Be3 {[%clk 0:02:32.2]}
15... O-O {[%clk 0:02:47]} 16. Qd2 {[%clk 0:02:32]} 16... Rc8 {[%clk 0:02:46.8]}
17. Rfc1 {[%clk 0:02:12.9]} 17... Bxe2 {[%clk 0:02:44.6]} 18. Qxe2 {[%clk
0:02:12.6]} 18... Bg5 {[%clk 0:02:45]} 19. c4 {[%clk 0:01:51.6]} 19... Nc5
{[%clk 0:02:35.2]} 20. Rf1 {[%clk 0:01:25.2]} 20... h6 {[%clk 0:02:25.9]} 21.
Bxc5 {[%clk 0:01:20.8]} 21... Rxc5 {[%clk 0:02:24.4]} 22. b3 {[%clk 0:01:21.1]}
22... g6 {[%clk 0:02:24.2]} 23. Be4 {[%clk 0:01:05.5]} 23... f5 {[%clk
0:02:23.2]} 24. Bc2 {[%clk 0:00:55.4]} 24... Bf4 {[%clk 0:02:20.7]} 25. Qf3
{[%clk 0:00:51.1]} 25... Kh8 {[%clk 0:02:14.2]} 26. Kg2 {[%clk 0:00:47.5]} 26...
Qg5 {[%clk 0:02:11.5]} 27. Rh1 {[%clk 0:00:40.4]} 27... e4 {[%clk 0:02:10.7]}
28. Qe2 {[%clk 0:00:35.4]} 28... Rc7 {[%clk 0:02:05.6]} 29. Rag1 {[%clk
0:00:26.9]} 29... Qf6 {[%clk 0:01:54.9]} 30. h4 {[%clk 0:00:21.4]} 30... Re7
{[%clk 0:01:37.7]} 31. gxf5 {[%clk 0:00:20.1]} 31... gxf5 {[%clk 0:01:36.4]} 32.
Kf1 {[%clk 0:00:20.1]} 32... Qa1+ {[%clk 0:01:34.6]} 33. Kg2 {[%clk 0:00:19.9]}
33... Qc3 {[%clk 0:01:33.7]} 34. Kf1 {[%clk 0:00:16.4]} 34... Rg8 {[%clk
0:01:13.5]} 35. Rxg8+ {[%clk 0:00:12.4]} 35... Kxg8 {[%clk 0:01:14.4]} 36. h5
{[%clk 0:00:08]} 36... Rg7 {[%clk 0:01:12.9]} 37. Qd1 {[%clk 0:00:03]} 37... Rg5
{[%clk 0:01:11]} 38. Qe2 {[%clk 0:00:02.6]} 38... Kg7 {[%clk 0:01:07.9]} 39. Qd1
{[%clk 0:00:01.6]} 39... Kf6 {[%clk 0:01:08]} 40. Qe2 {[%clk 0:00:02.4]} 40...
Ke5 {[%clk 0:01:07.8]} 41. Qd1 {[%clk 0:00:02.7]} 41... Rg4 {[%clk 0:00:56.9]}
42. Qe2 {[%clk 0:00:03]} 42... Bg5 {[%clk 0:00:56.7]} 43. Bd1 {[%clk 0:00:02.8]}
43... Rf4 {[%clk 0:00:56.4]} 44. Qe1 {[%clk 0:00:03]} 44... Qd4 {[%clk
0:00:54.1]} 45. Qe2 {[%clk 0:00:02.4]} 45... Rf3 {[%clk 0:00:51.3]} 46. Rg1
{[%clk 0:00:02.2]} 46... Rd3 {[%clk 0:00:50.9]} 47. Bc2 {[%clk 0:00:01.6]} 47...
Rd2 {[%clk 0:00:50.7]} 0-1

[Event "Late-Titled-Tuesday-Blitz-August-29-2023"]
[Site "Chess.com"]
[Date "2023.08.29"]
[Round "3"]
[White "NovikovaGalina"]
[Black "biostatistician"]
[Result "0-1"]
[WhiteElo "2406"]
[BlackElo "2578"]
[TimeControl "180+1"]
[EndTime "14:28:08 PDT"]
[Termination "biostatistician won by resignation"]

1. e4 {[%clk 0:03:00.9]} 1... e5 {[%clk 0:02:59.3]} 2. Nf3 {[%clk 0:03:00.3]}
2... Nc6 {[%clk 0:02:59.4]} 3. Bc4 {[%clk 0:03:00.9]} 3... Bc5 {[%clk
0:02:58.6]} 4. b4 {[%clk 0:03:00.7]} 4... Bxb4 {[%clk 0:02:58.2]} 5. c3 {[%clk
0:03:01.5]} 5... Be7 {[%clk 0:02:57.4]} 6. d4 {[%clk 0:03:01.7]} 6... Na5 {[%clk
0:02:56.9]} 7. Nxe5 {[%clk 0:03:00.6]} 7... Nxc4 {[%clk 0:02:56.3]} 8. Nxc4
{[%clk 0:03:01.5]} 8... d5 {[%clk 0:02:56.4]} 9. exd5 {[%clk 0:02:57.6]} 9...
Qxd5 {[%clk 0:02:57.3]} 10. Ne3 {[%clk 0:02:56.1]} 10... Qa5 {[%clk 0:02:55.6]}
11. O-O {[%clk 0:02:55.4]} 11... Nf6 {[%clk 0:02:55.7]} 12. Nc4 {[%clk
0:02:41.3]} 12... Qa6 {[%clk 0:02:48.3]} 13. Ne5 {[%clk 0:02:41.3]} 13... O-O
{[%clk 0:02:47.9]} 14. Nd2 {[%clk 0:02:36.9]} 14... Be6 {[%clk 0:02:46.7]} 15.
Nb3 {[%clk 0:02:35.2]} 15... b6 {[%clk 0:02:42.9]} 16. Bg5 {[%clk 0:02:35.4]}
16... h6 {[%clk 0:02:42.3]} 17. Bh4 {[%clk 0:02:31.8]} 17... Qb7 {[%clk
0:02:38.5]} 18. Qe2 {[%clk 0:02:18.8]} 18... Rfe8 {[%clk 0:02:36.6]} 19. Rae1
{[%clk 0:02:15.5]} 19... Rad8 {[%clk 0:02:36.2]} 20. f4 {[%clk 0:02:14.9]} 20...
c5 {[%clk 0:02:30.3]} 21. dxc5 {[%clk 0:01:54.6]} 21... bxc5 {[%clk 0:02:06.7]}
22. Rb1 {[%clk 0:01:41.8]} 22... Qc7 {[%clk 0:01:48.8]} 23. Kh1 {[%clk
0:01:41.2]} 23... Nd5 {[%clk 0:01:48]} 24. Be1 {[%clk 0:01:36.7]} 24... Bf6
{[%clk 0:01:43.1]} 25. Qf2 {[%clk 0:01:33.6]} 25... Nxf4 {[%clk 0:01:34.3]} 26.
Qxf4 {[%clk 0:01:23.1]} 26... Bxe5 {[%clk 0:01:27.7]} 27. Qh4 {[%clk 0:01:22.7]}
27... Rd3 {[%clk 0:01:18.8]} 28. Nd2 {[%clk 0:01:10]} 28... Bxc3 {[%clk
0:01:14.8]} 29. Nf3 {[%clk 0:01:08.4]} 29... Bd5 {[%clk 0:01:06.5]} 30. Bxc3
{[%clk 0:01:07.2]} 30... Rxc3 {[%clk 0:01:07.4]} 31. Rbe1 {[%clk 0:00:50.1]}
31... Rxe1 {[%clk 0:01:04.6]} 32. Rxe1 {[%clk 0:00:49.7]} 32... Bxf3 {[%clk
0:00:53.8]} 33. gxf3 {[%clk 0:00:49.6]} 33... Qc6 {[%clk 0:00:53.7]} 34. Qe4
{[%clk 0:00:34.8]} 34... Qxe4 {[%clk 0:00:52.3]} 35. Rxe4 {[%clk 0:00:34.9]}
35... Rxf3 {[%clk 0:00:51.5]} 36. Ra4 {[%clk 0:00:35.6]} 36... Rf2 {[%clk
0:00:44.6]} 37. Rxa7 {[%clk 0:00:35.5]} 37... c4 {[%clk 0:00:44.7]} 38. Rc7
{[%clk 0:00:35.3]} 38... Rxa2 {[%clk 0:00:44.3]} 39. Rxc4 {[%clk 0:00:35.9]}
39... g6 {[%clk 0:00:43.9]} 40. Rb4 {[%clk 0:00:35.9]} 40... Kg7 {[%clk
0:00:44.1]} 41. Rb6 {[%clk 0:00:36.5]} 41... g5 {[%clk 0:00:44]} 42. Rc6 {[%clk
0:00:36.7]} 42... f6 {[%clk 0:00:44.2]} 43. Rb6 {[%clk 0:00:37.3]} 43... Kg6
{[%clk 0:00:44.7]} 44. Rc6 {[%clk 0:00:37.8]} 44... h5 {[%clk 0:00:45.1]} 45.
Rb6 {[%clk 0:00:38.5]} 45... g4 {[%clk 0:00:45.5]} 46. Rc6 {[%clk 0:00:38.7]}
46... h4 {[%clk 0:00:45.4]} 47. Rc5 {[%clk 0:00:39.4]} 47... f5 {[%clk
0:00:45.4]} 48. Rb5 {[%clk 0:00:40.1]} 48... Kg5 {[%clk 0:00:45.5]} 49. Rc5
{[%clk 0:00:40.8]} 49... h3 {[%clk 0:00:44.4]} 50. Rc1 {[%clk 0:00:40.2]} 50...
f4 {[%clk 0:00:43.7]} 51. Rg1 {[%clk 0:00:37.5]} 51... Kh4 {[%clk 0:00:43.6]}
52. Rf1 {[%clk 0:00:36.2]} 52... Rb2 {[%clk 0:00:42.2]} 53. Rg1 {[%clk
0:00:33.6]} 53... g3 {[%clk 0:00:41.9]} 54. Rc1 {[%clk 0:00:32]} 54... Rxh2+
{[%clk 0:00:41.2]} 55. Kg1 {[%clk 0:00:32.5]} 55... Ra2 {[%clk 0:00:41.5]} 56.
Rb1 {[%clk 0:00:31.8]} 56... Kg4 {[%clk 0:00:40.7]} 57. Kh1 {[%clk 0:00:29.9]}
57... f3 {[%clk 0:00:39.6]} 58. Rb4+ {[%clk 0:00:29.1]} 58... Kf5 {[%clk
0:00:40]} 59. Rb5+ {[%clk 0:00:29.4]} 59... Ke4 {[%clk 0:00:40.4]} 60. Rb4+
{[%clk 0:00:29.7]} 60... Kd5 {[%clk 0:00:40.9]} 61. Rb5+ {[%clk 0:00:28.2]}
61... Kc4 {[%clk 0:00:40.8]} 62. Rb1 {[%clk 0:00:28.9]} 62... Rh2+ {[%clk
0:00:38.8]} 63. Kg1 {[%clk 0:00:29.1]} 63... f2+ {[%clk 0:00:39.7]} 64. Kf1
{[%clk 0:00:29.8]} 64... Rh1+ {[%clk 0:00:40.4]} 65. Ke2 {[%clk 0:00:30.7]}
65... Rxb1 {[%clk 0:00:40.7]} 0-1